fUST/lending_fUST_20250805
["ID","MTS","AMOUNT","RATE_DAILY","PERIOD"]
[377425456,1754407850589,-460.0,0.00028254,2]
[377425457,1754407850599,-466.36446335,0.00028254,2]
[377425458,1754407850608,-588.25,0.00028254,2]
[377425459,1754407850618,-460.0,0.00028254,2]
[377425460,1754407850628,-460.0,0.00028254,2]
[377425461,1754407850637,-645.07,0.00028254,2]
[377425462,1754407850646,-467.92902053,0.00028254,2]
[377425463,1754407850655,-1387.65,0.00028254,2]
[377425464,1754407850665,-1116.87,0.00028254,2]
[377425465,1754407850674,-460.0,0.00028254,2]
[377425466,1754407850683,-460.0,0.00028254,2]
[377425467,1754407850693,-460.0,0.00028254,2]
[377425468,1754407850702,-460.0,0.00028254,2]
[377425469,1754407850712,-1115.17,0.00028254,2]
[377425470,1754407850723,-484.77056755,0.00028254,2]
[377425471,1754407850732,-460.0,0.00028254,2]
[377425472,1754407850741,-1003.98,0.00028254,2]
[377425473,1754407850751,-460.0,0.00028254,2]
[377425474,1754407850760,-460.0,0.00028254,2]
[377425475,1754407850769,-1682.57,0.00028254,2]
[377425476,1754407850779,-460.0,0.00028254,2]
[377425477,1754407850788,-460.0,0.00028254,2]
[377425478,1754407850798,-495.9501556,0.00028273,5]
[377425479,1754407850807,-150.0,0.00028273,3]
[377425480,1754407850817,-500.0,0.00028321,2]
[377425481,1754407850826,-460.0,0.00028322,2]
[377425482,1754407850836,-6096.88,0.00028322,2]
[377425483,1754407850847,-1651.28,0.00028322,2]
[377425484,1754407850856,-1045.52,0.00028322,2]
[377425485,1754407850866,-786.04,0.00028322,2]
[377425486,1754407850876,-460.0,0.00028322,2]
[377425487,1754407850885,-151.0,0.00028322,7]
[377425488,1754407850895,-151.0,0.00028322,7]
[377425489,1754407850904,-151.0,0.00028322,7]
[377425490,1754407850914,-489.565294,0.00028322,7]
[377425491,1754407850923,-489.565294,0.00028322,7]
[377425492,1754407850933,-460.0,0.00028322,2]
[377425493,1754407850942,-1286.05,0.00028322,2]
[377425494,1754407850951,-160.0,0.000284,2]
[377425495,1754407850962,-658.0,0.0002846,2]
[377425496,1754407850971,-190.86946886,0.0002846,2]
[377425497,1754407850981,-2534.15,0.0002846,2]
[377425498,1754407850990,-1046.7,0.0002846,2]
[377425499,1754407851000,-1584.39,0.0002846,2]
[377425500,1754407851009,-460.0,0.0002846,2]
[377425501,1754407851022,-470.68753946,0.00028462,2]
[377425502,1754407851032,-467.30123933,0.00028462,2]
[377425503,1754407851041,-460.0,0.00028462,2]
[377425504,1754407851050,-460.0,0.00028462,2]
[377425505,1754407851060,-469.74,0.00028462,2]
[377425506,1754407851071,-460.0,0.00028462,2]
[377425507,1754407851080,-460.0,0.00028462,2]
[377425508,1754407851092,-460.0,0.00028462,2]
[377425509,1754407851102,-460.0,0.00028462,2]
[377425510,1754407851111,-460.0,0.00028462,2]
[377425511,1754407851120,-460.0,0.00028462,2]
[377425512,1754407851130,-460.0,0.00028462,2]
[377425513,1754407851140,-836.08,0.00028462,2]
[377425514,1754407851150,-460.0,0.00028462,2]
[377425515,1754407851161,-460.0,0.00028462,2]
[377425516,1754407851170,-460.0,0.00028462,2]
[377425517,1754407851180,-1198.82,0.00028462,2]
[377425518,1754407851189,-460.0,0.00028462,2]
[377425519,1754407851198,-759.39,0.00028462,2]
[377425520,1754407851207,-460.0,0.00028462,2]
[377425521,1754407851218,-2885.27,0.00028462,2]
[377425522,1754407851228,-689.77,0.00028462,2]
[377425523,1754407851237,-460.0,0.00028462,2]
[377425524,1754407851247,-460.0,0.00028462,2]
[377425525,1754407851257,-460.0,0.00028462,2]
[377425526,1754407851266,-465.08567592,0.00028462,2]
[377425527,1754407851276,-1367.26,0.00028462,2]
[377425528,1754407851285,-460.0,0.00028462,2]
[377425529,1754407851294,-1010.03,0.00028462,2]
[377425530,1754407851303,-460.0,0.00028462,2]
[377425531,1754407851313,-1135.39,0.00028462,2]
[377425532,1754407851322,-460.0,0.00028462,2]
[377425533,1754407851331,-460.0,0.00028462,2]
[377425534,1754407851341,-2121.08,0.00028462,2]
[377425535,1754407851351,-460.0,0.00028462,2]
[377425536,1754407851361,-274.440779,0.00028462,7]
[377425537,1754407851370,-151.0,0.00028462,7]
[377425538,1754407851380,-151.0,0.00028462,7]
[377425539,1754407851389,-466.73,0.00028462,2]
[377425540,1754407851399,-460.0,0.00028462,2]
[377425541,1754407851408,-460.0,0.00028462,2]
[377425542,1754407851417,-151.0,0.00028462,7]
[377425543,1754407851426,-460.0,0.00028462,2]
[377425544,1754407851435,-460.0,0.00028462,2]
[377425545,1754407851444,-151.0,0.00028462,7]
[377425546,1754407851453,-151.0,0.00028462,7]
[377425547,1754407851463,-460.0,0.00028462,2]
[377425548,1754407851472,-460.0,0.00028462,2]
[377425549,1754407851481,-460.0,0.00028462,2]
[377425550,1754407851490,-460.0,0.00028462,2]
[377425551,1754407851500,-460.0,0.00028462,2]
[377425552,1754407851509,-460.0,0.00028462,2]
[377425553,1754407851519,-460.0,0.00028462,2]
[377425554,1754407851528,-241.841915,0.00028466,2]
[377425555,1754407851538,-460.0,0.00028493,2]
[377425556,1754407851548,-460.0,0.00028493,2]
[377425557,1754407851557,-460.0,0.00028493,2]
[377425558,1754407851567,-259.01234341,0.00028493,2]
[377425559,1754407851577,-460.0,0.00028493,2]
[377425560,1754407851587,-460.0,0.00028493,2]
[377425561,1754407851598,-460.0,0.00028493,2]
[377425562,1754407851607,-460.0,0.00028493,2]
[377425563,1754407851617,-460.0,0.00028493,2]
[377425564,1754407851628,-669.1,0.00028493,2]
[377425565,1754407851637,-460.0,0.00028493,2]
[377425566,1754407851647,-460.0,0.00028493,2]
[377425567,1754407851656,-460.0,0.00028493,2]
[377425568,1754407851665,-458.84583748,0.00028493,2]
[377425569,1754407851675,-460.0,0.00028493,2]
[377425570,1754407851685,-1909.8,0.00028493,2]
[377425571,1754407851695,-418.72746511,0.00028493,2]
[377425572,1754407851705,-5587.66,0.00028493,2]
[377425573,1754407851715,-460.0,0.00028493,2]
[377425574,1754407851725,-755.95,0.00028493,2]
[377425575,1754407851734,-735.68,0.00028493,2]
[377425576,1754407851803,-460.0,0.00028493,2]
[377425577,1754407851818,-460.0,0.00028493,2]
[377425578,1754407851828,-865.94,0.00028493,2]
[377425579,1754407851837,-460.0,0.00028493,2]
[377425580,1754407851848,-465.12546042,0.00028493,2]
[377425581,1754407851857,-3828.19,0.00028493,2]
[377425582,1754407851867,-2646.3,0.00028493,2]
[377425583,1754407851876,-460.0,0.00028493,2]
[377425584,1754407851885,-460.0,0.00028493,2]
[377425585,1754407851895,-982.09,0.00028493,2]
[377425586,1754407851905,-1763.44,0.00028493,2]
[377425587,1754407851915,-460.0,0.00028493,2]
[377425588,1754407851925,-855.66,0.00028493,2]
[377425589,1754407851934,-460.0,0.00028493,2]
[377425590,1754407851943,-707.6,0.00028493,2]
[377425591,1754407851953,-460.0,0.00028493,2]
[377425592,1754407851963,-460.0,0.00028493,2]
[377425593,1754407851972,-460.0,0.00028493,2]
[377425594,1754407851982,-460.0,0.00028493,2]
[377425595,1754407851991,-437.74639867,0.00028493,2]
[377425596,1754407852001,-702.16,0.00028493,2]
[377425597,1754407852011,-460.0,0.00028493,2]
[377425598,1754407852024,-460.0,0.00028493,2]
[377425599,1754407852034,-3546.88,0.00028493,2]
[377425600,1754407852043,-1063.01,0.00028493,2]
[377425601,1754407852053,-460.0,0.00028493,2]
[377425602,1754407852063,-460.0,0.00028493,2]
[377425603,1754407852072,-460.0,0.00028493,2]
[377425604,1754407852082,-772.25,0.00028493,2]
[377425605,1754407852095,-963.83,0.00028493,2]
[377425606,1754407852105,-1413.03,0.00028493,2]
[377425607,1754407852115,-460.0,0.00028493,2]
[377425608,1754407852124,-460.0,0.00028493,2]
[377425609,1754407852135,-1306.51,0.00028493,2]
[377425610,1754407852144,-1014.88,0.00028493,2]
[377425611,1754407852154,-460.0,0.00028493,2]
[377425612,1754407852163,-460.0,0.00028493,2]
[377425613,1754407852172,-460.0,0.00028493,2]
[377425614,1754407852182,-460.0,0.00028493,2]
[377425615,1754407852192,-460.0,0.00028493,2]
[377425616,1754407852201,-460.0,0.00028493,2]
[377425617,1754407852211,-460.0,0.00028493,2]
[377425618,1754407852220,-460.0,0.00028493,2]
[377425619,1754407852229,-500.0,0.00028521,5]
[377425620,1754407852239,-1000.0,0.00028521,5]
[377425621,1754407852249,-460.0,0.00028527,2]
[377425622,1754407852258,-460.0,0.00028527,2]
[377425623,1754407852268,-460.0,0.00028527,2]
[377425624,1754407852277,-460.0,0.00028527,2]
[377425625,1754407852287,-468.30923617,0.00028527,2]
[377425626,1754407852296,-460.0,0.00028527,2]
[377425627,1754407852305,-460.0,0.00028527,2]
[377425628,1754407852314,-460.0,0.00028527,2]
[377425629,1754407852323,-460.0,0.00028527,2]
[377425630,1754407852332,-460.0,0.00028527,2]
[377425631,1754407852343,-471.16963835,0.00028527,2]
[377425632,1754407852353,-775.73,0.00028527,2]
[377425633,1754407852362,-460.0,0.00028527,2]
[377425634,1754407852371,-460.0,0.00028527,2]
[377425635,1754407852381,-460.0,0.00028527,2]
[377425636,1754407852390,-465.24303304,0.00028527,2]
[377425637,1754407852399,-460.0,0.00028527,2]
[377425638,1754407852408,-460.0,0.00028527,2]
[377425639,1754407852418,-460.0,0.00028527,2]
[377425640,1754407852427,-460.0,0.00028527,2]
[377425641,1754407852436,-460.0,0.00028527,2]
[377425642,1754407852446,-460.0,0.00028527,2]
[377425643,1754407852455,-244.7497992,0.00028527,2]
[377425644,1754407852464,-460.0,0.00028527,2]
[377425645,1754407852473,-358.37631223,0.00028527,2]
[377425646,1754407852482,-460.0,0.00028527,2]
[377425647,1754407852491,-460.0,0.00028527,2]
[377425648,1754407852501,-460.0,0.00028527,2]
[377425649,1754407852510,-460.0,0.00028527,2]
[377425650,1754407852519,-164.20093309,0.00028527,2]
[377425651,1754407852528,-460.0,0.00028527,2]
[377425652,1754407852538,-460.0,0.00028527,2]
[377425653,1754407852547,-443.49641145,0.00028527,2]
[377425654,1754407852556,-460.0,0.00028527,2]
[377425655,1754407852565,-472.14,0.00028527,2]
[377425656,1754407852575,-460.0,0.00028527,2]
[377425657,1754407852585,-460.0,0.00028527,2]
[377425658,1754407852596,-460.0,0.00028527,2]
[377425659,1754407852605,-460.0,0.00028527,2]
[377425660,1754407852615,-460.0,0.00028527,2]
[377425661,1754407852623,-460.0,0.00028527,2]
[377425662,1754407852632,-460.0,0.00028527,2]
[377425663,1754407852642,-460.0,0.00028527,2]
[377425664,1754407852651,-460.0,0.00028527,2]
[377425665,1754407852661,-460.0,0.00028527,2]
[377425666,1754407852671,-469.55798324,0.00028527,2]
[377425667,1754407852680,-467.97800243,0.00028527,2]
[377425668,1754407852689,-464.94060883,0.00028528,2]
[377425669,1754407852699,-460.0,0.00028528,2]
[377425670,1754407852711,-430.72132913,0.00028528,2]
[377425671,1754407852720,-460.0,0.00028528,2]
[377425672,1754407852730,-460.0,0.00028528,2]
[377425673,1754407852739,-460.0,0.00028528,2]
[377425674,1754407852749,-460.0,0.00028528,2]
[377425675,1754407852758,-463.40778993,0.00028528,2]
[377425676,1754407852767,-460.0,0.00028528,2]
[377425677,1754407852776,-463.7050291,0.00028528,2]
[377425678,1754407852786,-460.0,0.00028528,2]
[377425679,1754407852795,-588.25,0.00028528,2]
[377425680,1754407852804,-219.174412,0.00028528,7]
[377425681,1754407852814,-460.0,0.00028528,2]
[377425682,1754407852824,-460.0,0.00028528,2]
[377425683,1754407852833,-151.0,0.00028528,7]
[377425684,1754407852846,-645.07,0.00028528,2]
[377425685,1754407852855,-1387.65,0.00028528,2]
[377425686,1754407852865,-460.0,0.00028528,2]
[377425687,1754407852874,-1116.87,0.00028528,2]
[377425688,1754407852883,-460.0,0.00028528,2]
[377425689,1754407852892,-460.0,0.00028528,2]
[377425690,1754407852902,-460.0,0.00028528,2]
[377425691,1754407852911,-1115.17,0.00028528,2]
[377425692,1754407852921,-1003.98,0.00028528,2]
[377425693,1754407852930,-460.0,0.00028528,2]
[377425694,1754407852940,-460.0,0.00028528,2]
[377425695,1754407852949,-1682.57,0.00028528,2]
[377425696,1754407852959,-460.0,0.00028528,2]
[377425697,1754407852968,-190.775,0.00028529,2]
[377425698,1754407853040,-636.0,0.0002853,2]
[377425699,1754407853050,-2148.0,0.0002853,2]
[377425700,1754407853059,-971.0,0.0002853,2]
[377425701,1754407853069,-408.0,0.0002853,2]
[377425702,1754407853078,-460.0,0.00028596,2]
[377425703,1754407853087,-6096.88,0.00028596,2]
[377425704,1754407853098,-1651.28,0.00028596,2]
[377425705,1754407853107,-1045.52,0.00028596,2]
[377425706,1754407853117,-786.04,0.00028596,2]
[377425707,1754407853126,-460.0,0.00028596,2]
[377425708,1754407853136,-460.0,0.00028596,2]
[377425709,1754407853145,-1286.05,0.00028596,2]
[377425710,1754407853154,-658.0,0.00028734,2]
[377425711,1754407853163,-2534.15,0.00028734,2]
[377425712,1754407853173,-1046.7,0.00028734,2]
[377425713,1754407853182,-1584.39,0.00028734,2]
[377425714,1754407853191,-469.74,0.00028736,2]
[377425715,1754407853200,-460.0,0.00028736,2]
[377425716,1754407853209,-460.0,0.00028736,2]
[377425717,1754407853218,-460.0,0.00028736,2]
[377425718,1754407853228,-460.0,0.00028736,2]
[377425719,1754407853237,-460.0,0.00028736,2]
[377425720,1754407853246,-460.0,0.00028736,2]
[377425721,1754407853256,-836.08,0.00028736,2]
[377425722,1754407853268,-460.0,0.00028736,2]
[377425723,1754407853278,-532.99793358,0.00028736,2]
[377425724,1754407853287,-460.0,0.00028736,2]
[377425725,1754407853297,-1198.82,0.00028736,2]
[377425726,1754407853306,-460.0,0.00028736,2]
[377425727,1754407853316,-759.39,0.00028736,2]
[377425728,1754407853325,-460.0,0.00028736,2]
[377425729,1754407853335,-2885.27,0.00028736,2]
[377425730,1754407853347,-689.77,0.00028736,2]
[377425731,1754407853356,-460.0,0.00028736,2]
[377425732,1754407853366,-460.0,0.00028736,2]
[377425733,1754407853376,-1367.26,0.00028736,2]
[377425734,1754407853386,-288.4325219,0.00028736,2]
[377425735,1754407853396,-1010.03,0.00028736,2]
[377425736,1754407853405,-460.0,0.00028736,2]
[377425737,1754407853415,-1135.39,0.00028736,2]
[377425738,1754407853424,-460.0,0.00028736,2]
[377425739,1754407853434,-460.0,0.00028736,2]
[377425740,1754407853443,-2121.08,0.00028736,2]
[377425741,1754407853454,-466.73,0.00028736,2]
[377425742,1754407853463,-460.0,0.00028736,2]
[377425743,1754407853473,-460.0,0.00028736,2]
[377425744,1754407853483,-467.86488049,0.00028736,2]
[377425745,1754407853492,-460.0,0.00028736,2]
[377425746,1754407853502,-460.0,0.00028736,2]
[377425747,1754407853511,-460.0,0.00028736,2]
[377425748,1754407853521,-460.0,0.00028736,2]
[377425749,1754407853530,-151.0,0.00028736,7]
[377425750,1754407853540,-466.72147132,0.00028736,2]
[377425751,1754407853550,-151.0,0.00028736,7]
[377425752,1754407853560,-460.0,0.00028736,2]
[377425753,1754407853570,-489.565294,0.00028736,7]
[377425754,1754407853579,-489.565294,0.00028736,7]
[377425755,1754407853591,-460.0,0.00028736,2]
[377425756,1754407853601,-460.0,0.00028736,2]
[377425757,1754407853610,-445.04,0.00028757,3]
[377425758,1754407853619,-649.28,0.00028757,3]
[377425759,1754407853629,-324.64,0.00028757,3]
[377425760,1754407853638,-650.38,0.00028757,3]
[377425761,1754407853648,-325.18,0.00028757,3]
[377425762,1754407853658,-460.0,0.00028767,2]
[377425763,1754407853667,-460.0,0.00028767,2]
[377425764,1754407853676,-460.0,0.00028767,2]
[377425765,1754407853686,-230.77650921,0.00028767,2]
[377425766,1754407853695,-460.0,0.00028767,2]
[377425767,1754407853706,-460.0,0.00028767,2]
[377425768,1754407853715,-460.0,0.00028767,2]
[377425769,1754407853725,-460.0,0.00028767,2]
[377425770,1754407853734,-669.1,0.00028767,2]
[377425771,1754407853744,-460.0,0.00028767,2]
[377425772,1754407853753,-460.0,0.00028767,2]
[377425773,1754407853762,-460.0,0.00028767,2]
[377425774,1754407853771,-460.0,0.00028767,2]
[377425775,1754407853781,-1909.8,0.00028767,2]
[377425776,1754407853790,-5587.66,0.00028767,2]
[377425777,1754407853800,-468.02407211,0.00028767,2]
[377425778,1754407853809,-755.95,0.00028767,2]
[377425779,1754407853819,-735.68,0.00028767,2]
[377425780,1754407853828,-460.0,0.00028767,2]
[377425781,1754407853838,-460.0,0.00028767,2]
[377425782,1754407853849,-865.94,0.00028767,2]
[377425783,1754407853858,-460.0,0.00028767,2]
[377425784,1754407853867,-3828.19,0.00028767,2]
[377425785,1754407853876,-2646.3,0.00028767,2]
[377425786,1754407853885,-460.0,0.00028767,2]
[377425787,1754407853895,-460.0,0.00028767,2]
[377425788,1754407853903,-982.09,0.00028767,2]
[377425789,1754407853912,-151.0,0.00028767,7]
[377425790,1754407853923,-1763.44,0.00028767,2]
[377425791,1754407853932,-180.51515,0.00028767,7]
[377425792,1754407853941,-855.66,0.00028767,2]
[377425793,1754407853950,-460.0,0.00028767,2]
[377425794,1754407853959,-707.6,0.00028767,2]
[377425795,1754407853968,-460.0,0.00028767,2]
[377425796,1754407853977,-466.04450768,0.00028767,2]
[377425797,1754407853987,-460.0,0.00028767,2]
[377425798,1754407853996,-702.16,0.00028767,2]
[377425799,1754407854006,-460.0,0.00028767,2]
[377425800,1754407854017,-460.0,0.00028767,2]
[377425801,1754407854027,-3546.88,0.00028767,2]
[377425802,1754407854036,-151.0,0.00028767,7]
[377425803,1754407854045,-1063.01,0.00028767,2]
[377425804,1754407854055,-151.0,0.00028767,7]
[377425805,1754407854066,-151.0,0.00028767,7]
[377425806,1754407854075,-460.0,0.00028767,2]
[377425807,1754407854085,-520.81580791,0.00028767,2]
[377425808,1754407854096,-460.0,0.00028767,2]
[377425809,1754407854105,-772.25,0.00028767,2]
[377425810,1754407854176,-963.83,0.00028767,2]
[377425811,1754407854187,-1413.03,0.00028767,2]
[377425812,1754407854196,-460.0,0.00028767,2]
[377425813,1754407854205,-460.0,0.00028767,2]
[377425814,1754407854214,-1306.51,0.00028767,2]
[377425815,1754407854223,-1014.88,0.00028767,2]
[377425816,1754407854232,-460.0,0.00028767,2]
[377425817,1754407854241,-561.56874511,0.00028767,2]
[377425818,1754407854251,-460.0,0.00028767,2]
[377425819,1754407854260,-460.0,0.00028767,2]
[377425820,1754407854270,-460.0,0.00028767,2]
[377425821,1754407854280,-460.0,0.00028767,2]
[377425822,1754407854289,-460.0,0.00028767,2]
[377425823,1754407854298,-460.0,0.00028801,2]
[377425824,1754407854308,-460.0,0.00028801,2]
[377425825,1754407854318,-460.0,0.00028801,2]
[377425826,1754407854328,-460.0,0.00028801,2]
[377425827,1754407854337,-460.0,0.00028801,2]
[377425828,1754407854348,-463.93860934,0.00028801,2]
[377425829,1754407854357,-460.0,0.00028801,2]
[377425830,1754407854367,-460.0,0.00028801,2]
[377425831,1754407854376,-775.73,0.00028801,2]
[377425832,1754407854386,-241.99047369,0.00028801,2]
[377425833,1754407854396,-460.0,0.00028801,2]
[377425834,1754407854405,-460.0,0.00028801,2]
[377425835,1754407854415,-460.0,0.00028801,2]
[377425836,1754407854424,-460.0,0.00028801,2]
[377425837,1754407854434,-460.0,0.00028801,2]
[377425838,1754407854443,-460.0,0.00028801,2]
[377425839,1754407854453,-460.0,0.00028801,2]
[377425840,1754407854462,-409.48710097,0.00028801,2]
[377425841,1754407854472,-460.0,0.00028801,2]
[377425842,1754407854482,-186.16841269,0.00028801,2]
[377425843,1754407854491,-469.96996308,0.00028801,2]
[377425844,1754407854501,-460.0,0.00028801,2]
[377425845,1754407854511,-460.0,0.00028801,2]
[377425846,1754407854520,-460.0,0.00028801,2]
[377425847,1754407854530,-472.14,0.00028801,2]
[377425848,1754407854539,-460.0,0.00028801,2]
[377425849,1754407854549,-463.99578889,0.00028801,2]
[377425850,1754407854559,-460.0,0.00028801,2]
[377425851,1754407854568,-460.0,0.00028801,2]
[377425852,1754407854578,-460.0,0.00028801,2]
[377425853,1754407854587,-460.0,0.00028801,2]
[377425854,1754407854599,-460.0,0.00028801,2]
[377425855,1754407854609,-460.0,0.00028801,2]
[377425856,1754407854619,-460.0,0.00028801,2]
[377425857,1754407854628,-460.0,0.00028802,2]
[377425858,1754407854638,-460.0,0.00028802,2]
[377425859,1754407854647,-460.0,0.00028802,2]
[377425860,1754407854656,-160.0,0.00028802,2]
[377425861,1754407854665,-460.0,0.00028802,2]
[377425862,1754407854674,-460.0,0.00028802,2]
[377425863,1754407854683,-588.25,0.00028802,2]
[377425864,1754407854693,-460.0,0.00028802,2]
[377425865,1754407854702,-645.07,0.00028802,2]
[377425866,1754407854711,-1387.65,0.00028802,2]
[377425867,1754407854721,-460.0,0.00028802,2]
[377425868,1754407854730,-1116.87,0.00028802,2]
[377425869,1754407854739,-465.50919245,0.00028802,2]
[377425870,1754407854749,-460.0,0.00028802,2]
[377425871,1754407854758,-460.0,0.00028802,2]
[377425872,1754407854767,-1115.17,0.00028802,2]
[377425873,1754407854777,-1003.98,0.00028802,2]
[377425874,1754407854786,-460.0,0.00028802,2]
[377425875,1754407854795,-460.0,0.00028802,2]
[377425876,1754407854804,-1682.57,0.00028802,2]
[377425877,1754407854813,-460.0,0.00028802,2]
[377425878,1754407854822,-460.0,0.0002887,2]
[377425879,1754407854832,-6096.88,0.0002887,2]
[377425880,1754407854842,-1651.28,0.0002887,2]
[377425881,1754407854851,-1045.52,0.0002887,2]
[377425882,1754407854860,-786.04,0.0002887,2]
[377425883,1754407854869,-460.0,0.0002887,2]
[377425884,1754407854878,-460.0,0.0002887,2]
[377425885,1754407854887,-260.0,0.00028948,2]
[377425886,1754407854896,-1000.0,0.00028985,5]
[377425887,1754407854905,-658.0,0.00029008,2]
[377425888,1754407854914,-2534.15,0.00029008,2]
[377425889,1754407854924,-1046.7,0.00029008,2]
[377425890,1754407854936,-1584.39,0.00029008,2]
[377425891,1754407854946,-469.74,0.0002901,2]
[377425892,1754407854956,-460.0,0.0002901,2]
[377425893,1754407854966,-460.0,0.0002901,2]
[377425894,1754407854976,-460.0,0.0002901,2]
[377425895,1754407854985,-460.0,0.0002901,2]
[377425896,1754407854995,-460.0,0.0002901,2]
[377425897,1754407855004,-460.0,0.0002901,2]
[377425898,1754407855016,-836.08,0.0002901,2]
[377425899,1754407855031,-460.0,0.0002901,2]
[377425900,1754407855040,-460.0,0.0002901,2]
[377425901,1754407855050,-1198.82,0.0002901,2]
[377425902,1754407855059,-460.0,0.0002901,2]
[377425903,1754407855069,-759.39,0.0002901,2]
[377425904,1754407855078,-466.27022632,0.0002901,2]
[377425905,1754407855087,-2885.27,0.0002901,2]
[377425906,1754407855099,-689.77,0.0002901,2]
[377425907,1754407855109,-460.0,0.0002901,2]
[377425908,1754407855117,-460.0,0.0002901,2]
[377425909,1754407855127,-1367.26,0.0002901,2]
[377425910,1754407855136,-460.0,0.0002901,2]
[377425911,1754407855145,-1010.03,0.0002901,2]
[377425912,1754407855213,-1135.39,0.0002901,2]
[377425913,1754407855224,-460.0,0.0002901,2]
[377425914,1754407855233,-460.0,0.0002901,2]
[377425915,1754407855243,-2121.08,0.0002901,2]
[377425916,1754407855252,-466.73,0.0002901,2]
[377425917,1754407855262,-460.0,0.0002901,2]
[377425918,1754407855271,-460.0,0.0002901,2]
[377425919,1754407855280,-460.0,0.0002901,2]
[377425920,1754407855289,-460.0,0.0002901,2]
[377425921,1754407855299,-460.0,0.0002901,2]
[377425922,1754407855308,-460.0,0.0002901,2]
[377425923,1754407855318,-460.0,0.0002901,2]
[377425924,1754407855327,-460.0,0.0002901,2]
[377425925,1754407855336,-460.0,0.0002901,2]
[377425926,1754407855349,-216.4206905,0.00029029,2]
[377425927,1754407855358,-160.0,0.00029029,2]
[377425928,1754407855367,-160.0,0.00029029,2]
[377425929,1754407855376,-160.0,0.00029029,2]
[377425930,1754407855386,-842.25606042,0.00029029,2]
[377425931,1754407855395,-900.0,0.00029041,7]
[377425932,1754407855405,-460.0,0.00029041,2]
[377425933,1754407855414,-460.0,0.00029041,2]
[377425934,1754407855424,-451.11441632,0.00029041,2]
[377425935,1754407855433,-460.0,0.00029041,2]
[377425936,1754407855443,-469.67156856,0.00029041,2]
[377425937,1754407855453,-669.1,0.00029041,2]
[377425938,1754407855463,-460.0,0.00029041,2]
[377425939,1754407855472,-460.0,0.00029041,2]
[377425940,1754407855482,-460.0,0.00029041,2]
[377425941,1754407855491,-460.0,0.00029041,2]
[377425942,1754407855501,-1909.8,0.00029041,2]
[377425943,1754407855511,-5587.66,0.00029041,2]
[377425944,1754407855520,-755.95,0.00029041,2]
[377425945,1754407855530,-735.68,0.00029041,2]
[377425946,1754407855539,-460.0,0.00029041,2]
[377425947,1754407855548,-460.0,0.00029041,2]
[377425948,1754407855558,-865.94,0.00029041,2]
[377425949,1754407855568,-460.0,0.00029041,2]
[377425950,1754407855577,-3828.19,0.00029041,2]
[377425951,1754407855588,-151.0,0.00029041,7]
[377425952,1754407855598,-2646.3,0.00029041,2]
[377425953,1754407855608,-460.0,0.00029041,2]
[377425954,1754407855618,-460.0,0.00029041,2]
[377425955,1754407855627,-982.09,0.00029041,2]